[Event "Late-Titled-Tuesday-Blitz-April-02-2024"]
[Site "Chess.com"]
[Date "2024.04.02"]
[Round "6"]
[White "1mbl4"]
[Black "Fengwi"]
[Result "1-0"]
[WhiteElo "2631"]
[BlackElo "2451"]
[TimeControl "180+1"]
[EndTime "15:04:40 PDT"]
[Termination "1mbl4 won on time"]

1. e4 {[%clk 0:03:00.9]} 1... c5 {[%clk 0:02:59.9]} 2. d4 {[%clk 0:02:59.2]}
2... cxd4 {[%clk 0:02:59.2]} 3. c3 {[%clk 0:02:59.4]} 3... Nf6 {[%clk
0:02:57.9]} 4. e5 {[%clk 0:02:58.2]} 4... Nd5 {[%clk 0:02:57.2]} 5. Nf3 {[%clk
0:02:58.6]} 5... d6 {[%clk 0:02:56.4]} 6. Bc4 {[%clk 0:02:57.1]} 6... Nb6 {[%clk
0:02:51.2]} 7. Bb3 {[%clk 0:02:54.3]} 7... Nc6 {[%clk 0:02:43.4]} 8. exd6 {[%clk
0:02:52.9]} 8... Qxd6 {[%clk 0:02:43]} 9. cxd4 {[%clk 0:02:52.7]} 9... Be6
{[%clk 0:02:43]} 10. O-O {[%clk 0:02:51.4]} 10... Bxb3 {[%clk 0:02:41.6]} 11.
Qxb3 {[%clk 0:02:50.5]} 11... e6 {[%clk 0:02:41.6]} 12. Nc3 {[%clk 0:02:49.2]}
12... Be7 {[%clk 0:02:40.9]} 13. Ne4 {[%clk 0:02:39.1]} 13... Qd5 {[%clk
0:02:14.3]} 14. Nc3 {[%clk 0:02:28.5]} 14... Qxb3 {[%clk 0:02:11.7]} 15. axb3
{[%clk 0:02:28]} 15... O-O {[%clk 0:02:09.4]} 16. Be3 {[%clk 0:02:27]} 16... Nd5
{[%clk 0:02:04.9]} 17. Rfc1 {[%clk 0:01:56.4]} 17... Rfd8 {[%clk 0:02:02.4]} 18.
Ne4 {[%clk 0:01:47.8]} 18... Rac8 {[%clk 0:01:58.8]} 19. Kf1 {[%clk 0:01:41.7]}
19... h6 {[%clk 0:01:54.1]} 20. g3 {[%clk 0:01:33.4]} 20... b6 {[%clk
0:01:33.6]} 21. Ke2 {[%clk 0:01:30.5]} 21... Na5 {[%clk 0:01:21.7]} 22. Ned2
{[%clk 0:01:22.2]} 22... Bb4 {[%clk 0:01:09.5]} 23. h4 {[%clk 0:01:18.4]} 23...
h5 {[%clk 0:01:01.3]} 24. Kd1 {[%clk 0:00:56]} 24... f6 {[%clk 0:00:54.5]} 25.
Rxc8 {[%clk 0:00:51.1]} 25... Rxc8 {[%clk 0:00:55.4]} 26. Rc1 {[%clk 0:00:51.3]}
26... Rxc1+ {[%clk 0:00:52.3]} 27. Kxc1 {[%clk 0:00:52.2]} 27... Nxe3 {[%clk
0:00:40.7]} 28. fxe3 {[%clk 0:00:52]} 28... Bd6 {[%clk 0:00:39.8]} 29. Ne4
{[%clk 0:00:37.9]} 29... Bc7 {[%clk 0:00:39.7]} 30. Kc2 {[%clk 0:00:37.6]} 30...
Kf7 {[%clk 0:00:34.9]} 31. Nfd2 {[%clk 0:00:30.1]} 31... Nc6 {[%clk 0:00:30.7]}
32. Kc3 {[%clk 0:00:25]} 32... Ne7 {[%clk 0:00:28.3]} 33. Nf1 {[%clk 0:00:23.4]}
33... Nd5+ {[%clk 0:00:18.7]} 34. Kd3 {[%clk 0:00:23.4]} 34... Ke7 {[%clk
0:00:14.3]} 35. Nc3 {[%clk 0:00:23]} 35... a6 {[%clk 0:00:09.9]} 36. e4 {[%clk
0:00:22.9]} 36... Nb4+ {[%clk 0:00:10]} 37. Kd2 {[%clk 0:00:19]} 37... b5 {[%clk
0:00:10.3]} 38. Ne2 {[%clk 0:00:18.7]} 38... Nc6 {[%clk 0:00:09.9]} 39. Kd3
{[%clk 0:00:18.3]} 39... g5 {[%clk 0:00:07.1]} 40. Nd2 {[%clk 0:00:13.4]} 40...
Bd6 {[%clk 0:00:05.3]} 41. Nf3 {[%clk 0:00:12.6]} 41... g4 {[%clk 0:00:05.3]}
42. Nd2 {[%clk 0:00:12.2]} 42... Nd8 {[%clk 0:00:03]} 43. Nf1 {[%clk 0:00:12]}
43... Nf7 {[%clk 0:00:03]} 44. Ne3 {[%clk 0:00:12.1]} 44... Kd7 {[%clk
0:00:02.8]} 45. Nf4 {[%clk 0:00:10.9]} 45... e5 {[%clk 0:00:02.2]} 46. Nxh5
{[%clk 0:00:10.2]} 46... exd4 {[%clk 0:00:02.5]} 47. Nxg4 {[%clk 0:00:09.9]}
47... Be5 {[%clk 0:00:01.4]} 48. Nhxf6+ {[%clk 0:00:09.6]} 48... Ke6 {[%clk
0:00:01.6]} 49. Nd5 {[%clk 0:00:09.4]} 49... Bh8 {[%clk 0:00:01.3]} 50. h5
{[%clk 0:00:09.2]} 50... Ng5 {[%clk 0:00:01.3]} 51. Nh6 {[%clk 0:00:06.6]} 1-0

[Event "Late-Titled-Tuesday-Blitz-April-02-2024"]
[Site "Chess.com"]
[Date "2024.04.02"]
[Round "6"]
[White "fmcabralis"]
[Black "campochess"]
[Result "1-0"]
[WhiteElo "2398"]
[BlackElo "2179"]
[TimeControl "180+1"]
[EndTime "15:04:41 PDT"]
[Termination "fmcabralis won by resignation"]

1. e4 {[%clk 0:03:00.9]} 1... c5 {[%clk 0:02:59.7]} 2. Nf3 {[%clk 0:03:01.1]}
2... Nc6 {[%clk 0:02:59.3]} 3. d4 {[%clk 0:03:01.7]} 3... cxd4 {[%clk
0:02:59.3]} 4. Nxd4 {[%clk 0:03:02.6]} 4... e5 {[%clk 0:02:58.9]} 5. Nb5 {[%clk
0:03:02.2]} 5... a6 {[%clk 0:02:59.1]} 6. N5a3 {[%clk 0:02:58.2]} 6... Bc5
{[%clk 0:02:58.8]} 7. Nc3 {[%clk 0:02:40.2]} 7... Qh4 {[%clk 0:02:57.4]} 8. g3
{[%clk 0:02:34.2]} 8... Qf6 {[%clk 0:02:48.7]} 9. Be3 {[%clk 0:02:29]} 9... Bxe3
{[%clk 0:02:46.1]} 10. fxe3 {[%clk 0:02:29.9]} 10... Nge7 {[%clk 0:02:44.7]} 11.
Nd5 {[%clk 0:02:23.9]} 11... Nxd5 {[%clk 0:02:44]} 12. exd5 {[%clk 0:02:24.8]}
12... Ne7 {[%clk 0:02:43.1]} 13. Bg2 {[%clk 0:02:14.7]} 13... O-O {[%clk
0:02:40.8]} 14. Qd3 {[%clk 0:02:10.6]} 14... d6 {[%clk 0:02:35.2]} 15. O-O-O
{[%clk 0:02:07.2]} 15... Bf5 {[%clk 0:02:33]} 16. e4 {[%clk 0:02:06.9]} 16...
Bg6 {[%clk 0:02:25.5]} 17. Nc4 {[%clk 0:02:00.3]} 17... Nc8 {[%clk 0:02:24.1]}
18. Rdf1 {[%clk 0:01:58]} 18... Qe7 {[%clk 0:02:24.2]} 19. h4 {[%clk 0:01:57.8]}
19... h5 {[%clk 0:02:21.1]} 20. Ne3 {[%clk 0:01:52.6]} 20... b5 {[%clk
0:02:20.8]} 21. Nf5 {[%clk 0:01:51.9]} 21... Qc7 {[%clk 0:02:10.8]} 22. Bf3
{[%clk 0:01:45.2]} 22... Nb6 {[%clk 0:02:10]} 23. Qe2 {[%clk 0:01:44.2]} 23...
Rac8 {[%clk 0:02:08.5]} 24. Rh2 {[%clk 0:01:44.4]} 24... Nc4 {[%clk 0:01:57.2]}
25. Bxh5 {[%clk 0:01:39.3]} 25... Qa5 {[%clk 0:01:57]} 26. Ne7+ {[%clk
0:01:34.8]} 26... Kh7 {[%clk 0:01:55.1]} 27. Bxg6+ {[%clk 0:01:34.5]} 27... fxg6
{[%clk 0:01:54]} 28. Nxc8 {[%clk 0:01:34.9]} 28... Rxc8 {[%clk 0:01:53.5]} 29.
Kb1 {[%clk 0:01:28.3]} 29... Qb4 {[%clk 0:01:53.2]} 30. c3 {[%clk 0:01:28.2]}
30... Qa5 {[%clk 0:01:35]} 31. h5 {[%clk 0:01:26.5]} 31... g5 {[%clk 0:01:33.9]}
32. Qg4 {[%clk 0:01:24.3]} 32... Qd8 {[%clk 0:01:25.6]} 33. Qf5+ {[%clk
0:01:19.7]} 33... Kh8 {[%clk 0:01:10.9]} 34. h6 {[%clk 0:01:20]} 34... g6 {[%clk
0:01:09.9]} 35. Qxg6 {[%clk 0:01:17.7]} 35... Rc7 {[%clk 0:01:10.1]} 36. Rf7
{[%clk 0:01:14.2]} 36... Rxf7 {[%clk 0:01:08]} 37. Qxf7 {[%clk 0:01:12.5]} 37...
Qg8 {[%clk 0:01:07.8]} 38. Qxg8+ {[%clk 0:00:56.8]} 38... Kxg8 {[%clk
0:01:07.5]} 39. Rh5 {[%clk 0:00:57.7]} 39... Kh7 {[%clk 0:01:06.3]} 40. Rxg5
{[%clk 0:00:57.6]} 40... Kxh6 {[%clk 0:01:06.3]} 41. Rf5 {[%clk 0:00:57.6]}
41... Nd2+ {[%clk 0:01:04.7]} 42. Kc2 {[%clk 0:00:54.4]} 42... Nxe4 {[%clk
0:01:04.4]} 43. g4 {[%clk 0:00:48.3]} 43... Kg6 {[%clk 0:01:04.2]} 44. Rf8
{[%clk 0:00:36.6]} 44... Nf6 {[%clk 0:01:03.6]} 45. Rd8 {[%clk 0:00:36.1]} 45...
Ne4 {[%clk 0:00:58.1]} 46. b4 {[%clk 0:00:32.8]} 46... Kg5 {[%clk 0:00:57.3]}
47. Kd3 {[%clk 0:00:33.1]} 47... Nf2+ {[%clk 0:00:55.9]} 48. Ke2 {[%clk
0:00:33.7]} 48... Ne4 {[%clk 0:00:54.1]} 49. Kd3 {[%clk 0:00:31.1]} 49... Nf2+
{[%clk 0:00:51.8]} 50. Ke3 {[%clk 0:00:31.5]} 50... Nxg4+ {[%clk 0:00:51.5]} 51.
Kf3 {[%clk 0:00:26.5]} 51... Kf5 {[%clk 0:00:44.8]} 52. Rxd6 {[%clk 0:00:20.3]}
52... e4+ {[%clk 0:00:44.2]} 53. Ke2 {[%clk 0:00:19.7]} 53... Ke5 {[%clk
0:00:44]} 54. Rxa6 {[%clk 0:00:19.7]} 54... Nh2 {[%clk 0:00:41.7]} 55. d6 {[%clk
0:00:17.2]} 55... Ke6 {[%clk 0:00:41.6]} 56. d7+ {[%clk 0:00:15.5]} 56... Kxd7
{[%clk 0:00:40.5]} 57. Rh6 {[%clk 0:00:12.9]} 57... Ng4 {[%clk 0:00:39.8]} 58.
Rh4 {[%clk 0:00:12]} 58... Nf6 {[%clk 0:00:39.4]} 59. Ke3 {[%clk 0:00:10.8]}
59... Nd5+ {[%clk 0:00:38.8]} 60. Kd4 {[%clk 0:00:10.4]} 60... Nf6 {[%clk
0:00:38.6]} 61. Rxe4 {[%clk 0:00:10.2]} 61... Kd6 {[%clk 0:00:36.8]} 62. Rh4
{[%clk 0:00:08.2]} 62... Ne8 {[%clk 0:00:35.4]} 63. Rh6+ {[%clk 0:00:08.1]}
63... Kd7 {[%clk 0:00:34.6]} 64. Kc5 {[%clk 0:00:08.2]} 64... Kc7 {[%clk
0:00:30.7]} 65. Rh7+ {[%clk 0:00:08]} 65... Kc8 {[%clk 0:00:27.7]} 66. Rh8
{[%clk 0:00:08.1]} 1-0

[Event "Late-Titled-Tuesday-Blitz-April-02-2024"]
[Site "Chess.com"]
[Date "2024.04.02"]
[Round "6"]
[White "dosto07"]
[Black "sacrifoice"]
[Result "1-0"]
[WhiteElo "2471"]
[BlackElo "2285"]
[TimeControl "180+1"]
[EndTime "15:04:44 PDT"]
[Termination "dosto07 won on time"]

1. e4 {[%clk 0:03:00.9]} 1... c5 {[%clk 0:02:59.4]} 2. Nf3 {[%clk 0:03:01.1]}
2... d6 {[%clk 0:02:58.5]} 3. Bb5+ {[%clk 0:03:00.8]} 3... Nd7 {[%clk
0:02:57.7]} 4. d4 {[%clk 0:03:00.2]} 4... cxd4 {[%clk 0:02:57.8]} 5. Qxd4 {[%clk
0:03:00.8]} 5... Nf6 {[%clk 0:02:58.7]} 6. Bg5 {[%clk 0:02:59.8]} 6... a6 {[%clk
0:02:56.9]} 7. Bxd7+ {[%clk 0:02:59.8]} 7... Bxd7 {[%clk 0:02:54.1]} 8. Nc3
{[%clk 0:03:00.4]} 8... e6 {[%clk 0:02:53.6]} 9. O-O-O {[%clk 0:02:59.3]} 9...
Be7 {[%clk 0:02:53.6]} 10. e5 {[%clk 0:02:59.7]} 10... dxe5 {[%clk 0:02:52.5]}
11. Nxe5 {[%clk 0:03:00.6]} 11... Bc6 {[%clk 0:02:40.4]} 12. Nxc6 {[%clk
0:02:59.4]} 12... bxc6 {[%clk 0:02:39.9]} 13. Bxf6 {[%clk 0:02:59.6]} 13... Bxf6
{[%clk 0:02:37.4]} 14. Qc5 {[%clk 0:02:59.7]} 14... Qc7 {[%clk 0:02:33.6]} 15.
Ne4 {[%clk 0:02:59.8]} 15... Be7 {[%clk 0:02:31.4]} 16. Nd6+ {[%clk 0:02:59.5]}
16... Bxd6 {[%clk 0:02:29.6]} 17. Rxd6 {[%clk 0:02:59.4]} 17... Rc8 {[%clk
0:02:29.3]} 18. Rhd1 {[%clk 0:02:44.6]} 18... O-O {[%clk 0:02:27.6]} 19. g3
{[%clk 0:02:44.6]} 19... h6 {[%clk 0:02:16.6]} 20. f4 {[%clk 0:02:42.7]} 20...
a5 {[%clk 0:02:13.7]} 21. a4 {[%clk 0:02:28.1]} 21... Qb7 {[%clk 0:02:06.7]} 22.
b3 {[%clk 0:02:23]} 22... Qc7 {[%clk 0:01:57.5]} 23. Rd7 {[%clk 0:02:17.3]}
23... Qb8 {[%clk 0:01:52.9]} 24. Qxa5 {[%clk 0:02:14.2]} 24... c5 {[%clk
0:01:49.6]} 25. Qa7 {[%clk 0:02:10.3]} 25... Qb4 {[%clk 0:01:47.5]} 26. Rc7
{[%clk 0:01:57.8]} 26... c4 {[%clk 0:01:40.8]} 27. Rxc8 {[%clk 0:01:53.3]} 27...
Rxc8 {[%clk 0:01:37.2]} 28. Qa6 {[%clk 0:01:51.7]} 28... Rc7 {[%clk 0:01:20.8]}
29. Qd6 {[%clk 0:01:31]} 29... Qb7 {[%clk 0:01:03.3]} 30. Qd8+ {[%clk
0:01:21.9]} 30... Kh7 {[%clk 0:01:02.4]} 31. Kb2 {[%clk 0:01:21.8]} 31... cxb3
{[%clk 0:00:53.1]} 32. cxb3 {[%clk 0:01:21.3]} 32... Qg2+ {[%clk 0:00:45.5]} 33.
Qd2 {[%clk 0:01:19.8]} 33... Qc6 {[%clk 0:00:40.6]} 34. Rc1 {[%clk 0:01:14.3]}
34... Qb7 {[%clk 0:00:39.8]} 35. Qd3+ {[%clk 0:01:11.1]} 35... f5 {[%clk
0:00:37.7]} 36. Rxc7 {[%clk 0:01:09.9]} 36... Qxc7 {[%clk 0:00:37.7]} 37. Qc3
{[%clk 0:01:08]} 37... Qd6 {[%clk 0:00:37.3]} 38. a5 {[%clk 0:01:07.2]} 38... g5
{[%clk 0:00:36.9]} 39. Qe5 {[%clk 0:01:00.6]} 39... Qd2+ {[%clk 0:00:32.6]} 40.
Ka3 {[%clk 0:01:00.6]} 40... Qc1+ {[%clk 0:00:32.5]} 41. Kb4 {[%clk 0:00:59.8]}
41... Qd2+ {[%clk 0:00:32.3]} 42. Kb5 {[%clk 0:00:59.9]} 42... Qd3+ {[%clk
0:00:27.4]} 43. Kb4 {[%clk 0:00:57.8]} 43... Qd2+ {[%clk 0:00:26.6]} 44. Qc3
{[%clk 0:00:55.6]} 44... Qd6+ {[%clk 0:00:23.7]} 45. Ka4 {[%clk 0:00:55.2]}
45... Qd7+ {[%clk 0:00:21.1]} 46. Ka3 {[%clk 0:00:50.7]} 46... gxf4 {[%clk
0:00:21]} 47. gxf4 {[%clk 0:00:50.9]} 47... Qd6+ {[%clk 0:00:15.1]} 48. Qb4
{[%clk 0:00:51]} 48... Qd1 {[%clk 0:00:14.5]} 49. Qc4 {[%clk 0:00:46.4]} 49...
Qd6+ {[%clk 0:00:11.3]} 50. Ka4 {[%clk 0:00:45.9]} 50... Qd7+ {[%clk 0:00:09]}
51. Qb5 {[%clk 0:00:44.3]} 51... Qd4+ {[%clk 0:00:08.4]} 52. Qb4 {[%clk
0:00:41.8]} 52... Qd7+ {[%clk 0:00:08]} 53. Ka3 {[%clk 0:00:41.4]} 53... Qd1
{[%clk 0:00:07.3]} 54. Qc3 {[%clk 0:00:40.1]} 54... Qd6+ {[%clk 0:00:06.3]} 55.
Kb2 {[%clk 0:00:39.6]} 55... Qxf4 {[%clk 0:00:05.5]} 56. b4 {[%clk 0:00:39.3]}
56... Qf2+ {[%clk 0:00:05.4]} 57. Ka3 {[%clk 0:00:37.9]} 57... f4 {[%clk
0:00:05.7]} 58. a6 {[%clk 0:00:36.8]} 58... f3 {[%clk 0:00:03.9]} 59. Qc7+
{[%clk 0:00:36.1]} 59... Kg6 {[%clk 0:00:01.3]} 60. a7 {[%clk 0:00:36.6]} 60...
Qe3+ {[%clk 0:00:01.3]} 61. Ka4 {[%clk 0:00:36.6]} 61... f2 {[%clk 0:00:02.2]}
62. a8=Q {[%clk 0:00:34.3]} 1-0

[Event "Late-Titled-Tuesday-Blitz-April-02-2024"]
[Site "Chess.com"]
[Date "2024.04.02"]
[Round "6"]
[White "AmanteDeMoi"]
[Black "Zkid"]
[Result "0-1"]
[WhiteElo "2608"]
[BlackElo "2844"]
[TimeControl "180+1"]
[EndTime "15:04:46 PDT"]
[Termination "Zkid won on time"]

1. Nf3 {[%clk 0:02:58.6]} 1... d5 {[%clk 0:02:56.1]} 2. e3 {[%clk 0:02:58.6]}
2... Nf6 {[%clk 0:02:55.5]} 3. c4 {[%clk 0:02:58.3]} 3... e6 {[%clk 0:02:55.7]}
4. b3 {[%clk 0:02:58.3]} 4... Be7 {[%clk 0:02:55.4]} 5. Bb2 {[%clk 0:02:58.3]}
5... O-O {[%clk 0:02:56.1]} 6. Be2 {[%clk 0:02:58.6]} 6... a5 {[%clk 0:02:55.8]}
7. O-O {[%clk 0:02:58.7]} 7... Nbd7 {[%clk 0:02:52.7]} 8. d3 {[%clk 0:02:58.9]}
8... b6 {[%clk 0:02:51.3]} 9. Qc2 {[%clk 0:02:58.5]} 9... Bb7 {[%clk 0:02:51.2]}
10. Nbd2 {[%clk 0:02:58.1]} 10... a4 {[%clk 0:02:50.5]} 11. cxd5 {[%clk
0:02:41.1]} 11... exd5 {[%clk 0:02:49.1]} 12. Nd4 {[%clk 0:02:29]} 12... a3
{[%clk 0:02:45.4]} 13. Bc3 {[%clk 0:02:26.2]} 13... Re8 {[%clk 0:02:42.6]} 14.
Rac1 {[%clk 0:02:18.4]} 14... c5 {[%clk 0:02:38.7]} 15. Nf5 {[%clk 0:02:17.8]}
15... Bf8 {[%clk 0:02:39.3]} 16. Bf3 {[%clk 0:02:05.6]} 16... Ne5 {[%clk
0:02:36.2]} 17. Bxe5 {[%clk 0:01:56.6]} 17... Rxe5 {[%clk 0:02:37.1]} 18. d4
{[%clk 0:01:57]} 18... Re8 {[%clk 0:02:32]} 19. dxc5 {[%clk 0:01:56.8]} 19...
bxc5 {[%clk 0:02:32.4]} 20. Rfd1 {[%clk 0:01:56.8]} 20... Qb6 {[%clk 0:02:29.4]}
21. Nb1 {[%clk 0:01:52.4]} 21... Red8 {[%clk 0:02:20.5]} 22. Nc3 {[%clk
0:01:52.1]} 22... g6 {[%clk 0:02:12.8]} 23. Ng3 {[%clk 0:01:49.3]} 23... h5
{[%clk 0:02:06.8]} 24. Nge2 {[%clk 0:01:27.6]} 24... Bg7 {[%clk 0:02:01.4]} 25.
Na4 {[%clk 0:01:24.1]} 25... Qd6 {[%clk 0:01:49.9]} 26. Qxc5 {[%clk 0:01:20.7]}
26... Qxc5 {[%clk 0:01:45.2]} 27. Nxc5 {[%clk 0:01:20.5]} 27... Bc8 {[%clk
0:01:42.8]} 28. Nd4 {[%clk 0:01:14]} 28... Bg4 {[%clk 0:01:41.2]} 29. Bxg4
{[%clk 0:01:06.8]} 29... hxg4 {[%clk 0:01:39.7]} 30. b4 {[%clk 0:00:55.9]} 30...
Ne4 {[%clk 0:01:36.7]} 31. Nxe4 {[%clk 0:00:47.9]} 31... dxe4 {[%clk 0:01:37.6]}
32. Nc6 {[%clk 0:00:48.7]} 32... Rd3 {[%clk 0:01:28.8]} 33. b5 {[%clk
0:00:46.2]} 33... Bb2 {[%clk 0:01:26]} 34. Rb1 {[%clk 0:00:41]} 34... Rc3 {[%clk
0:01:07.6]} 35. Rd6 {[%clk 0:00:37]} 35... Ra4 {[%clk 0:01:01.5]} 36. Rd4 {[%clk
0:00:21.6]} 36... Rxd4 {[%clk 0:00:59.1]} 37. exd4 {[%clk 0:00:22.5]} 37... Kf8
{[%clk 0:00:54.1]} 38. d5 {[%clk 0:00:22]} 38... Rc5 {[%clk 0:00:53.8]} 39. d6
{[%clk 0:00:16.5]} 39... Ke8 {[%clk 0:00:23.1]} 40. Rd1 {[%clk 0:00:16.2]} 40...
Kd7 {[%clk 0:00:22.3]} 41. Nb8+ {[%clk 0:00:11.5]} 41... Kd8 {[%clk 0:00:22.4]}
42. d7 {[%clk 0:00:10.3]} 42... Bf6 {[%clk 0:00:22.2]} 43. Nc6+ {[%clk 0:00:09]}
43... Kc7 {[%clk 0:00:22.2]} 44. d8=Q+ {[%clk 0:00:08.7]} 44... Bxd8 {[%clk
0:00:22]} 45. Nxd8 {[%clk 0:00:09.6]} 45... Rc2 {[%clk 0:00:22.3]} 46. Nxf7
{[%clk 0:00:07.6]} 46... Rxa2 {[%clk 0:00:22.8]} 47. Ne5 {[%clk 0:00:05.7]}
47... Rc2 {[%clk 0:00:19.8]} 48. b6+ {[%clk 0:00:02.9]} 48... Kxb6 {[%clk
0:00:18.9]} 49. Rb1+ {[%clk 0:00:03.2]} 49... Kc5 {[%clk 0:00:18.4]} 50. Nxg4
{[%clk 0:00:03]} 50... a2 {[%clk 0:00:18.1]} 51. Rd1 {[%clk 0:00:02.4]} 51...
Rb2 {[%clk 0:00:17.7]} 52. Rc1+ {[%clk 0:00:02.3]} 52... Kb5 {[%clk 0:00:14.3]}
0-1

[Event "Late-Titled-Tuesday-Blitz-April-02-2024"]
[Site "Chess.com"]
[Date "2024.04.02"]
[Round "6"]
[White "stollenmonster"]
[Black "BogdanDeac"]
[Result "1-0"]
[WhiteElo "2866"]
[BlackElo "3088"]
[TimeControl "180+1"]
[EndTime "15:04:47 PDT"]
[Termination "stollenmonster won by resignation"]

1. e4 {[%clk 0:03:00.9]} 1... Nf6 {[%clk 0:02:59.6]} 2. Nc3 {[%clk 0:03:00.2]}
2... d5 {[%clk 0:02:59]} 3. exd5 {[%clk 0:03:01.1]} 3... Nxd5 {[%clk 0:02:58.9]}
4. g3 {[%clk 0:03:01.7]} 4... g6 {[%clk 0:02:50.9]} 5. Bg2 {[%clk 0:03:02]} 5...
c6 {[%clk 0:02:51.1]} 6. Nge2 {[%clk 0:03:02.2]} 6... Bg7 {[%clk 0:02:51]} 7.
Nxd5 {[%clk 0:03:02.9]} 7... cxd5 {[%clk 0:02:50]} 8. d4 {[%clk 0:03:03.6]} 8...
h5 {[%clk 0:02:41.8]} 9. h3 {[%clk 0:03:03.2]} 9... Nc6 {[%clk 0:02:12.9]} 10.
c3 {[%clk 0:03:03.4]} 10... e6 {[%clk 0:02:13.3]} 11. O-O {[%clk 0:03:00.9]}
11... O-O {[%clk 0:02:13.1]} 12. Nf4 {[%clk 0:03:00.5]} 12... b5 {[%clk
0:02:07.9]} 13. a3 {[%clk 0:03:00]} 13... a5 {[%clk 0:02:07.3]} 14. Re1 {[%clk
0:03:00.4]} 14... Rb8 {[%clk 0:02:07]} 15. Be3 {[%clk 0:02:53.2]} 15... b4
{[%clk 0:02:06.3]} 16. axb4 {[%clk 0:02:54.1]} 16... axb4 {[%clk 0:02:06.4]} 17.
Qf3 {[%clk 0:02:34.1]} 17... bxc3 {[%clk 0:02:04.6]} 18. bxc3 {[%clk 0:02:35]}
18... Ne7 {[%clk 0:02:03.9]} 19. g4 {[%clk 0:02:33.5]} 19... hxg4 {[%clk
0:01:53]} 20. hxg4 {[%clk 0:02:34.4]} 20... Bd7 {[%clk 0:01:52.4]} 21. Nd3
{[%clk 0:02:33]} 21... Nc6 {[%clk 0:01:40.7]} 22. Nc5 {[%clk 0:02:14.9]} 22...
Re8 {[%clk 0:01:40.3]} 23. Bf4 {[%clk 0:02:01.9]} 23... Rb6 {[%clk 0:01:30.6]}
24. Qg3 {[%clk 0:01:53.1]} 24... Qc8 {[%clk 0:01:09.1]} 25. Bf3 {[%clk
0:01:25.5]} 25... e5 {[%clk 0:00:34.6]} 26. Nxd7 {[%clk 0:01:15.2]} 26... Qxd7
{[%clk 0:00:28.2]} 27. dxe5 {[%clk 0:01:15.2]} 27... Rb3 {[%clk 0:00:27.3]} 28.
Re3 {[%clk 0:01:02.1]} 28... d4 {[%clk 0:00:13.1]} 29. cxd4 {[%clk 0:01:01.6]}
29... Nxd4 {[%clk 0:00:12.9]} 30. Rxb3 {[%clk 0:00:47.8]} 30... Nxb3 {[%clk
0:00:13]} 31. Ra8 {[%clk 0:00:30.8]} 31... Rxa8 {[%clk 0:00:09.4]} 32. Bxa8
{[%clk 0:00:31.7]} 32... Nd4 {[%clk 0:00:08.5]} 33. Bf3 {[%clk 0:00:20.8]} 33...
Qb5 {[%clk 0:00:06.3]} 34. Kg2 {[%clk 0:00:19]} 34... Ne6 {[%clk 0:00:06.7]} 35.
Be4 {[%clk 0:00:15.1]} 35... Qc4 {[%clk 0:00:06]} 36. Qe3 {[%clk 0:00:14.4]}
36... Bf8 {[%clk 0:00:05.6]} 37. Bg3 {[%clk 0:00:13.4]} 37... Bc5 {[%clk
0:00:05.6]} 38. Qd3 {[%clk 0:00:13.6]} 38... Qb4 {[%clk 0:00:05.8]} 39. Bxg6
{[%clk 0:00:12.1]} 39... fxg6 {[%clk 0:00:05.2]} 40. Qxg6+ {[%clk 0:00:12.4]}
40... Ng7 {[%clk 0:00:05.7]} 41. e6 {[%clk 0:00:12.2]} 41... Qb7+ {[%clk
0:00:05.5]} 42. f3 {[%clk 0:00:12.8]} 42... Qe7 {[%clk 0:00:05.2]} 43. Be5
{[%clk 0:00:12.5]} 43... Qf8 {[%clk 0:00:04.5]} 44. Bf6 {[%clk 0:00:11.4]} 44...
Be7 {[%clk 0:00:03.8]} 45. g5 {[%clk 0:00:11.9]} 45... Bd6 {[%clk 0:00:03.6]}
46. f4 {[%clk 0:00:11.2]} 46... Qa8+ {[%clk 0:00:02.3]} 47. Kg3 {[%clk 0:00:11]}
47... Qf8 {[%clk 0:00:02.3]} 48. Kg4 {[%clk 0:00:08.7]} 48... Be7 {[%clk
0:00:02.4]} 49. f5 {[%clk 0:00:08.2]} 49... Bb4 {[%clk 0:00:02.7]} 50. Kf4
{[%clk 0:00:07.5]} 50... Qb8+ {[%clk 0:00:02.2]} 51. Kg4 {[%clk 0:00:07.6]}
51... Qa7 {[%clk 0:00:02.8]} 52. Qxg7+ {[%clk 0:00:06.7]} 52... Qxg7 {[%clk
0:00:03]} 53. Bxg7 {[%clk 0:00:07.3]} 53... Kxg7 {[%clk 0:00:03.9]} 54. f6+
{[%clk 0:00:07.6]} 54... Kf8 {[%clk 0:00:03.9]} 55. Kf5 {[%clk 0:00:07.7]} 55...
Bc5 {[%clk 0:00:03.9]} 56. g6 {[%clk 0:00:08.3]} 56... Bb4 {[%clk 0:00:03.7]}
57. g7+ {[%clk 0:00:08.9]} 57... Kg8 {[%clk 0:00:04.2]} 58. Kg6 {[%clk
0:00:09.6]} 1-0